bitfinex/quotes_ETHUSD_20250430
["timestamp","ask_amount","ask_price","bid_price","bid_amount"]
[1745986770287,0.30994845,1812.4,1812.2,1.0651]
[1745986770490,0.33987706,1812.3,1812.2,1.0651]
[1745986770676,0.8123,1812.6,1812.2,1.0651]
[1745986770875,0.33987706,1812.5,1812.2,1.0651]
[1745986772270,0.33987706,1812.5,1812.2,6.5832198]
[1745986772470,0.33987706,1812.5,1812.3,0.65832198]
[1745986772975,0.33987706,1812.5,1812.2,1.0651]
[1745986773484,0.3100296,1812.4,1812.2,1.0651]
[1745986773871,0.33987706,1812.3,1812.2,1.0651]
[1745986774074,0.8123,1812.6,1812.2,1.0651]
[1745986774272,0.33987706,1812.5,1812.2,1.0651]
[1745986775708,0.31008411,1812.4,1812.2,1.0651]
[1745986775875,0.34033437,1812.3,1812.2,1.0651]
[1745986776077,0.31008411,1812.4,1812.2,1.0651]
[1745986776278,0.34033437,1812.3,1812.2,1.0651]
[1745986776478,0.8123,1812.6,1812.2,1.0651]
[1745986776675,0.34033437,1812.5,1812.1,5.3706]
[1745986776874,0.7716,1812.4,1812.1,4.601]
[1745986777125,0.7716,1812.4,1812.2,0.55]
[1745986777280,0.34033437,1812.3,1812.2,0.55]
[1745986777477,0.31016487,1812.3,1812.2,0.55]
[1745986777677,0.65049924,1812.3,1812.2,0.55]
[1745986778210,0.65049924,1812.3,1812.1,0.55]
[1745986779110,0.31016487,1812.2,1812.1,0.55]
[1745986779620,0.65049924,1812.2,1812.1,0.55]
[1745986779779,0.31016487,1812.2,1812.1,0.55]
[1745986780110,0.7899,1812.1,1812.0,4.23054113]
[1745986780280,1.13023437,1812.1,1812.0,3.68054113]
[1745986780482,1.44039924,1812.1,1812.0,3.68054113]
[1745986780819,1.44039924,1812.1,1811.7,4.23054113]
[1745986781321,1.44039924,1812.1,1811.7,4.65359524]
[1745986781834,0.31016487,1812.0,1811.7,4.65359524]
[1745986782120,0.33765555,1811.9,1811.7,4.65359524]
[1745986782606,0.7899,1812.1,1811.7,4.65359524]
[1745986782810,0.33765555,1811.8,1811.7,4.23054113]
[1745986783112,0.7899,1812.1,1811.7,4.23054113]
[1745986783313,0.33765555,1812.0,1811.7,4.23054113]
[1745986783792,0.33765555,1812.0,1811.7,4.99894113]
[1745986783987,0.33765555,1812.0,1811.7,1.3184]
[1745986784292,0.33765555,1812.0,1811.7,2.04455304]
[1745986785113,0.33765555,1812.0,1811.6,0.55]
[1745986786916,0.33765555,1812.0,1811.6,0.9709283]
[1745986787418,0.33765555,1812.0,1811.6,6.49088391]
[1745986788113,0.33765555,1812.0,1811.6,0.55]
[1745986792117,0.7515,1811.9,1811.5,4.598]
[1745986792324,0.7515,1811.9,1811.3,4.46124113]
[1745986792518,0.33491066,1811.8,1811.3,6.08878874]
[1745986793018,0.30965884,1811.7,1811.4,0.55]
[1745986793592,0.33438777,1811.6,1811.4,0.55]
[1745986793927,3.7515,1811.9,1811.4,0.55]
[1745986794125,0.33438777,1811.5,1811.4,0.55]
[1745986794328,3.7515,1811.9,1811.4,0.55]
[1745986794488,0.33438777,1811.5,1811.4,0.55]
[1745986794690,3.7515,1811.9,1811.4,0.55]
[1745986794886,0.33438777,1811.5,1811.4,0.60519808]
[1745986795090,0.30953317,1811.8,1811.4,0.55]
[1745986795305,0.33438777,1811.5,1811.4,0.55]
[1745986795502,0.30953317,1811.8,1811.4,1.76596678]
[1745986795710,0.33438777,1811.5,1811.4,0.55]
[1745986795906,0.30953317,1811.8,1811.4,0.55]
[1745986796106,0.33301498,1811.5,1811.4,0.55]
[1745986796302,0.7581,1811.7,1811.3,3.68054113]
[1745986796528,0.33301498,1811.5,1811.3,3.68054113]
[1745986796718,0.7581,1811.5,1811.3,3.68054113]
[1745986797095,0.33236116,1811.4,1811.3,3.68054113]
[1745986798437,0.33236116,1811.4,1811.2,0.55]
[1745986798737,0.33236116,1811.4,1811.0,3.68054113]
[1745986798930,0.33236116,1811.4,1811.0,4.7991655]
[1745986799135,0.33236116,1811.4,1811.1,0.55]
[1745986804761,0.33236116,1811.4,1811.0,0.55]
[1745986805051,0.33236116,1811.4,1811.0,0.60520961]
[1745986805350,0.33236116,1811.4,1811.0,0.55]
[1745986805647,0.33236116,1811.4,1811.0,1.40706076]
[1745986807826,0.33236116,1811.4,1811.0,0.55]
[1745986808146,0.8119,1811.3,1810.9,0.55]
[1745986808347,0.32863433,1811.2,1810.9,0.55]
[1745986809926,0.32863433,1811.2,1811.0,0.86521359]
[1745986810130,0.7803,1811.5,1811.0,0.81]
[1745986810330,0.32863433,1811.4,1811.0,1.66761213]
[1745986810651,0.32863433,1811.4,1811.3,0.55]
[1745986810953,3.0,1811.6,1811.3,0.55]
[1745986811115,0.32673784,1811.5,1811.3,0.55]
[1745986811650,0.32673784,1811.5,1811.3,2.92779541]
[1745986811947,4.6,1811.8,1811.5,0.55]
[1745986812152,0.32673784,1811.7,1811.5,0.55]
[1745986815945,3.0,1811.9,1811.5,0.55]
[1745986816157,0.32922277,1811.8,1811.5,0.55]
[1745986816357,3.0,1811.9,1811.5,0.55]
[1745986816532,0.32922277,1811.8,1811.5,0.55]
[1745986816731,3.0,1811.9,1811.5,0.55]
[1745986816931,0.32922277,1811.8,1811.5,0.55]
[1745986817164,3.0,1811.9,1811.5,0.55]
[1745986817368,0.32922277,1811.8,1811.5,0.55]
[1745986817566,3.0,1811.9,1811.5,0.55]
[1745986817742,0.32922277,1811.8,1811.5,0.55]
[1745986817940,0.30944022,1811.8,1811.5,0.55]
[1745986818135,0.32922277,1811.7,1811.5,1.23352662]
[1745986818433,0.30944022,1811.8,1811.5,1.23352662]
[1745986818848,0.32922277,1811.7,1811.5,1.23352662]
[1745986819136,3.0,1811.9,1811.5,1.23352662]
[1745986819336,0.32922277,1811.8,1811.5,0.55]
[1745986819537,3.0,1811.9,1811.5,0.55]
[1745986819841,0.32922277,1811.8,1811.5,0.55]
[1745986820161,3.0,1811.9,1811.5,0.55]
[1745986820341,0.32922277,1811.8,1811.5,0.55]
[1745986820667,3.0,1811.9,1811.5,0.55]
[1745986820842,0.32922277,1811.7,1811.5,1.23352771]
[1745986821170,3.0,1811.9,1811.5,1.23352771]
[1745986821333,0.3319691,1811.8,1811.5,1.23352771]
[1745986821530,3.0,1811.9,1811.5,0.55]
[1745986821835,0.64161579,1811.8,1811.5,0.55]
[1745986822372,0.3319691,1811.8,1811.5,0.55]
[1745986822670,3.0,1811.9,1811.5,0.55]
[1745986823071,0.3319691,1811.8,1811.5,0.55]
[1745986823273,3.0,1811.9,1811.5,0.55]
[1745986823678,0.3319691,1811.8,1811.5,0.55]
[1745986823875,3.0,1811.9,1811.5,0.55]
[1745986824075,0.3319691,1811.8,1811.5,0.55]
[1745986824279,3.0,1811.9,1811.5,0.55]
[1745986824475,0.3319691,1811.8,1811.5,0.55]
[1745986824678,3.0,1811.9,1811.5,0.55]
[1745986824855,0.64162929,1811.8,1811.7,0.55]
[1745986825366,0.64162929,1811.8,1811.7,7.81907583]
[1745986825569,0.64162929,1811.8,1811.7,9.45743143]
[1745986825882,0.3319691,1811.8,1811.7,9.45743143]
[1745986826083,3.0,1812.3,1811.8,5.51933156]
[1745986826272,0.31736787,1812.2,1811.9,0.55]
[1745986826462,5.3842,1812.4,1811.9,0.55]
[1745986826662,3.31736787,1812.3,1811.9,1.15693316]
[1745986826867,3.62683527,1812.3,1811.9,1.15693316]
[1745986827989,0.3094674,1812.2,1811.9,1.15693316]
[1745986828402,0.3094674,1812.2,1811.8,0.55]
[1745986828597,0.31736787,1812.1,1811.8,0.55]
[1745986829093,0.31736787,1812.0,1811.8,0.55]
[1745986829295,1.0713674,1812.2,1811.8,0.55]
[1745986829491,0.31736787,1812.1,1811.8,0.55]
[1745986829695,0.7619,1812.2,1811.8,0.55]
[1745986829896,0.31736787,1812.1,1811.8,0.55]
[1745986830195,1.13809,1812.2,1811.8,0.55]
[1745986830396,0.31736787,1812.0,1811.8,0.55]
[1745986830697,0.31736787,1811.9,1811.8,0.55]
[1745986830895,0.31736787,1811.9,1811.7,0.829]
[1745986830896,0.7759,1812.0,1811.6,0.55]
[1745986831058,0.31736787,1811.9,1811.6,0.55]
[1745986831778,0.50657942,1811.9,1811.6,0.55]
[1745986834815,0.8006,1811.8,1811.6,0.55]
[1745986834988,1.11006407,1811.8,1811.6,0.55]
[1745986835189,0.5075613,1811.7,1811.6,0.55]
[1745986835591,0.5075613,1811.7,1811.4,0.55]
[1745986835797,0.5075613,1811.7,1811.4,1.51797725]
[1745986841417,0.5075613,1811.7,1811.4,0.55]
[1745986841710,0.31016447,1811.6,1811.4,0.55]
[1745986841875,0.81713668,1811.6,1811.4,0.55]
[1745986842289,0.50697221,1811.6,1811.4,0.55]
[1745986842491,0.8006,1811.8,1811.4,0.55]
[1745986842709,0.50697221,1811.7,1811.4,0.55]
[1745986843716,3.7536,1811.6,1811.0,4.50364113]
[1745986843923,0.7536,1811.5,1811.0,5.67562804]
[1745986844123,0.7536,1811.5,1811.0,4.50364113]
[1745986844415,0.7536,1811.3,1811.0,3.68054113]
[1745986844996,0.50147244,1811.2,1811.1,0.55]
[1745986845436,0.811706,1811.2,1811.1,0.55]
[1745986845596,0.811706,1811.2,1811.0,3.68054113]
[1745986845805,0.31023356,1811.2,1811.0,3.68054113]
[1745986845992,0.50147244,1811.1,1811.0,4.23054113]
[1745986846193,0.31023356,1811.1,1811.0,4.23054113]
[1745986846526,0.31023356,1811.1,1811.0,0.55]
[1745986846724,0.811706,1811.1,1811.0,0.55]
[1745986847820,0.811706,1811.1,1810.8,0.55]
[1745986848025,0.50147244,1811.1,1810.8,0.55]
[1745986848326,0.7536,1811.3,1810.8,0.55]
[1745986848530,0.50147244,1811.0,1810.8,0.55]
[1745986848734,1.12896,1811.3,1810.8,0.55]
[1745986848890,0.50147244,1810.9,1810.8,0.55]
[1745986849090,1.12896,1811.3,1810.8,0.55]
[1745986849329,0.50147244,1811.2,1810.8,0.55]
[1745986850224,0.50147244,1811.2,1810.9,0.7749]
[1745986857718,3.0,1811.4,1810.9,0.7749]
[1745986857909,0.49182903,1811.3,1810.9,0.7749]
[1745986858109,3.0,1811.4,1810.9,0.7749]
[1745986858418,0.80700902,1811.3,1810.9,0.7749]
[1745986858618,0.80700902,1811.3,1810.9,1.07681062]
[1745986859032,0.49778736,1811.3,1810.9,1.07681062]
[1745986859428,3.0,1811.4,1810.9,1.07681062]
[1745986859633,0.49778736,1811.2,1810.9,1.07681062]
[1745986859808,3.0,1811.4,1810.9,1.07681062]
[1745986860006,1.28858736,1811.3,1810.9,1.07681062]
[1745986860208,1.28858736,1811.3,1810.9,0.7749]
[1745986860409,0.30936238,1811.2,1810.8,0.55]
[1745986860706,0.49778736,1811.1,1810.8,0.55]
[1745986860919,0.30936238,1811.2,1810.8,0.55]
[1745986861118,0.49772186,1811.1,1810.8,0.55]
[1745986861332,0.30936238,1811.2,1810.8,0.55]
[1745986861673,0.49759086,1811.1,1810.8,0.55]
[1745986862012,0.7908,1811.3,1810.8,0.55]
[1745986862349,0.49759086,1811.2,1810.8,1.24488234]
[1745986863853,0.49759086,1811.2,1810.9,0.7751]
[1745986865352,3.0,1811.4,1811.0,0.55]
[1745986865649,3.0,1811.4,1811.1,0.7751]
[1745986866040,0.30957868,1811.3,1811.1,0.7751]
[1745986866547,0.30957868,1811.3,1811.2,0.55]
[1745986866758,0.30957868,1811.3,1811.2,1.3715]
[1745986867060,0.30957868,1811.5,1811.2,1.3715]
[1745986868163,0.30957868,1811.5,1811.2,2.06077816]
[1745986869460,0.30957868,1811.5,1811.4,0.55]
[1745986869976,0.30957868,1811.6,1811.4,1.3027]
[1745986870852,0.30957868,1811.8,1811.4,1.3027]
[1745986871532,0.30957868,1811.7,1811.4,1.3027]
[1745986871870,0.30957868,1811.7,1811.4,1.98504917]
[1745986872158,0.30957868,1811.6,1811.4,1.98504917]
[1745986872322,0.30957868,1811.6,1811.4,1.3027]
[1745986873032,0.30957868,1811.8,1811.4,1.3027]
[1745986873361,0.7822,1811.7,1811.1,0.7725]
[1745986873850,0.7822,1811.7,1811.2,0.55]
[1745986874043,0.30957868,1811.6,1811.2,0.55]
[1745986874756,0.30957868,1811.5,1811.2,0.55]
[1745986875223,1.09807868,1811.5,1811.2,0.55]
[1745986875755,0.30957868,1811.4,1811.2,0.55]
[1745986876431,0.30957868,1811.3,1811.2,0.55]
[1745986877270,0.30957868,1811.4,1811.2,0.55]
[1745986878159,0.30957868,1811.3,1811.2,0.55]
[1745986878860,0.30957868,1811.4,1811.2,0.55]
[1745986879758,0.81273609,1811.3,1811.0,0.55]
[1745986879923,0.81273609,1811.3,1811.0,1.14527]
[1745986881259,0.30957868,1811.2,1811.0,1.14527]
[1745986881736,0.50315741,1811.1,1811.0,1.14527]
[1745986881935,0.30957868,1811.2,1811.0,1.14527]
[1745986882137,0.50315741,1811.1,1811.0,1.14527]
[1745986882347,3.7885,1811.5,1811.0,1.14527]
[1745986882537,0.8251,1811.3,1810.7,0.8316]
[1745986882864,3.8251,1811.3,1810.7,0.8316]
[1745986883026,0.49968682,1811.2,1810.8,0.55]
[1745986884039,0.3101237,1811.1,1810.8,0.55]
[1745986884364,0.49903186,1811.0,1810.8,0.55]
[1745986885374,0.49903186,1810.9,1810.8,0.55]
[1745986885524,0.8251,1811.3,1810.8,0.55]
[1745986885860,0.49903186,1811.2,1810.8,0.55]
[1745986886022,0.80913508,1811.2,1810.8,0.55]
[1745986886865,0.31010322,1811.1,1810.8,0.55]
[1745986887421,0.49903186,1811.0,1810.8,0.55]
[1745986887968,0.8251,1811.3,1810.8,0.55]
[1745986888271,0.49903186,1811.2,1810.8,0.55]
[1745986888955,0.49903186,1811.2,1810.8,1.24043067]
[1745986889547,0.49903186,1811.2,1810.8,0.55]
[1745986889747,0.31007204,1811.1,1810.8,0.55]
[1745986890280,0.49903186,1811.0,1810.8,0.55]
[1745986890672,0.31007204,1811.2,1810.8,0.55]
[1745986890837,0.49903186,1810.9,1810.8,0.55]
[1745986891380,0.8251,1811.3,1810.8,0.55]
[1745986891549,0.49903186,1811.2,1810.8,0.55]
[1745986892069,0.3100804,1811.1,1810.8,0.55]
[1745986892657,0.49903186,1811.0,1810.8,1.24043226]
[1745986893158,0.8251,1811.3,1810.8,1.24043226]
[1745986893347,0.49765636,1811.2,1810.8,0.55]
[1745986894908,0.31008676,1811.1,1810.8,0.55]
[1745986895559,0.49765636,1811.0,1810.8,0.55]
[1745986895957,0.31008676,1811.2,1810.8,0.55]
[1745986896583,0.80774312,1811.1,1810.8,0.55]
[1745986896784,0.80774312,1811.1,1810.8,1.24042246]
[1745986897287,0.49765636,1811.1,1810.8,1.24042246]
[1745986897674,3.8251,1811.3,1810.8,1.24042246]
[1745986897851,0.49765636,1811.0,1810.8,0.55]
[1745986898051,3.8251,1811.3,1810.8,0.55]
[1745986898265,0.49765636,1811.2,1810.8,0.55]
[1745986899702,0.31009035,1811.1,1810.8,0.55]
[1745986900303,0.49765636,1811.0,1810.8,0.55]
[1745986900959,3.8251,1811.3,1810.8,0.55]
[1745986901161,0.88016636,1811.2,1810.8,0.55]
[1745986901362,0.49765636,1811.2,1810.8,0.55]
[1745986901592,0.31022781,1811.1,1810.8,0.55]
[1745986902112,0.49765636,1811.0,1810.7,0.8316]
[1745986902276,0.31022781,1810.9,1810.7,0.8316]
[1745986902602,0.49641174,1810.8,1810.7,1.3816]
[1745986903499,0.80663955,1810.8,1810.7,1.3816]
[1745986904583,0.80663955,1810.8,1810.7,1.89333651]
[1745986904992,0.49641174,1810.8,1810.7,1.89333651]
[1745986905500,0.49470834,1810.8,1810.7,1.89333651]
[1745986905902,6.15,1811.2,1810.7,1.89333651]
[1745986906209,6.15,1811.2,1810.7,1.3816]
[1745986906412,0.49470834,1811.1,1810.7,1.3816]
[1745986906572,0.7956,1811.1,1810.8,0.55]
[1745986906776,0.80518586,1811.0,1810.8,0.55]
[1745986907372,0.31047752,1810.9,1810.8,0.55]
[1745986907927,0.80518586,1810.9,1810.8,0.55]
[1745986908219,0.80518586,1810.9,1810.6,1.3139]
[1745986908877,0.31047752,1810.8,1810.6,1.3139]
[1745986909078,0.31047752,1810.8,1810.6,1.90449]
[1745986909497,0.49470834,1810.7,1810.6,1.90449]
[1745986909790,0.31047752,1810.8,1810.6,1.90449]
[1745986909989,0.49470834,1810.7,1810.4,4.49634113]
[1745986910507,3.8119,1810.9,1810.4,4.49634113]
[1745986910831,1.27410834,1810.8,1810.3,3.68054113]
[1745986910993,4.70151917,1810.8,1810.3,3.68054113]
[1745986911323,1.70151917,1810.8,1810.3,3.68054113]
[1745986911526,0.31037923,1810.7,1810.3,3.68054113]
[1745986911825,0.49392204,1810.6,1810.4,0.55]
[1745986912029,0.31037923,1810.7,1810.4,0.55]
[1745986912197,0.49392204,1810.6,1810.4,0.55]
[1745986912429,0.7794,1810.8,1810.4,0.55]
[1745986912603,0.49392204,1810.7,1810.4,0.55]
[1745986913029,0.31027591,1810.6,1810.4,0.55]
[1745986913388,0.49392204,1810.5,1810.4,0.55]
[1745986914223,0.7794,1810.8,1810.4,0.55]
[1745986914410,0.49392204,1810.7,1810.4,0.55]
[1745986914598,0.8040435,1810.7,1810.4,0.55]
[1745986915527,0.31012146,1810.6,1810.4,0.55]
[1745986916085,0.49392204,1810.5,1810.4,0.55]
[1745986916722,0.7794,1810.8,1810.4,0.55]
[1745986916924,0.49116954,1810.5,1810.4,0.55]
[1745986918331,1.15734,1810.8,1810.4,0.55]
[1745986918532,0.49116954,1810.5,1810.4,0.55]
[1745986918738,1.15734,1810.8,1810.4,0.55]
[1745986918940,0.49116954,1810.5,1810.4,0.55]
[1745986919108,0.7794,1810.8,1810.4,0.55]
[1745986919311,0.49116954,1810.5,1810.4,0.55]
[1745986919538,0.30991574,1810.7,1810.4,0.55]
[1745986919694,0.49116954,1810.5,1810.4,0.55]
[1745986919894,0.30991574,1810.7,1810.4,0.55]
[1745986920136,0.49116954,1810.5,1810.4,0.55]
[1745986921138,0.7794,1810.8,1810.4,0.55]
[1745986921344,0.49116954,1810.5,1810.4,0.55]
[1745986921639,0.7794,1810.8,1810.4,0.55]
[1745986921800,0.49116954,1810.7,1810.3,0.55]
[1745986921999,0.30990138,1810.6,1810.3,0.55]
[1745986922595,0.49116954,1810.5,1810.3,0.55]
[1745986923112,0.49116954,1810.5,1810.2,0.55]
[1745986923528,0.7995,1810.4,1810.2,0.55]
[1745986924039,0.48867893,1810.3,1810.2,0.55]
[1745986924234,0.7995,1810.4,1810.2,0.55]
[1745986924457,0.48867893,1810.3,1810.2,0.55]
[1745986924757,0.7995,1810.4,1810.2,0.55]
[1745986925002,0.48867893,1810.3,1810.2,0.55]
[1745986925261,0.7995,1810.4,1810.2,0.55]
[1745986925422,0.48867893,1810.3,1810.2,0.55]
[1745986925627,0.7995,1810.4,1810.2,0.55]
[1745986925831,0.48867893,1810.3,1810.2,0.55]
[1745986926541,0.7995,1810.4,1810.2,0.55]
[1745986926736,0.48867893,1810.3,1810.2,0.55]
[1745986927041,0.7995,1810.4,1810.2,0.55]
[1745986927362,0.48867893,1810.3,1810.2,0.55]
[1745986927706,8.3589,1810.6,1810.2,0.55]
[1745986927919,7.593,1810.6,1810.3,0.8142]
[1745986928132,7.593,1810.6,1810.4,0.55]
[1745986928957,0.3097358,1810.5,1810.4,0.55]
[1745986929963,6.15,1810.7,1810.4,0.55]
[1745986930961,0.30982494,1810.6,1810.4,0.55]
[1745986932737,6.15,1810.7,1810.4,1.23879429]
[1745986932936,3.0,1810.8,1810.4,1.23879429]
[1745986933361,0.30995447,1810.7,1810.4,1.23879429]
[1745986933669,0.30995447,1810.7,1810.4,6.76238831]
[1745986933846,0.30995447,1810.7,1810.5,0.8143]
[1745986934243,1.6942062,1811.2,1810.4,2.93300049]
[1745986934244,0.7787,1811.9,1810.9,0.7579]
[1745986934442,0.7787,1811.9,1811.3,1.3079]
[1745986935271,0.7787,1811.9,1811.3,6.82878707]
[1745986935566,0.7787,1811.9,1811.3,1.3079]
[1745986935933,0.7787,1811.9,1811.3,6.82873355]
[1745986937371,0.7992,1812.1,1811.6,0.8285]
[1745986937573,3.7992,1812.1,1811.6,0.8285]
[1745986938978,0.7992,1812.1,1811.6,0.8285]
[1745986939147,3.7992,1812.1,1811.6,0.8285]
[1745986939775,0.48848225,1812.0,1811.6,0.8285]
[1745986939934,0.91725047,1812.0,1811.6,0.8285]
[1745986940341,0.91725047,1812.0,1811.5,0.55]
[1745986941676,7.06725047,1812.0,1811.5,0.55]
[1745986944473,0.8332,1811.9,1811.5,0.55]
[1745986944671,0.50322286,1811.8,1811.5,0.55]
[1745986944994,0.8332,1811.9,1811.5,0.55]
[1745986945190,0.50322286,1811.7,1811.5,0.55]
[1745986945384,0.8332,1811.9,1811.5,0.55]
[1745986945996,0.50322286,1811.8,1811.5,0.55]
[1745986946294,0.8332,1811.9,1811.5,0.55]
[1745986946496,0.50322286,1811.8,1811.5,0.55]
[1745986946792,0.8332,1811.9,1811.5,0.55]
[1745986947091,1.57439682,1811.9,1811.5,0.55]
[1745986947394,0.50322286,1811.8,1811.5,0.55]
[1745986947899,1.57439682,1811.9,1811.5,0.55]
[1745986948196,0.50322286,1811.8,1811.5,0.55]
[1745986948493,1.57439682,1811.9,1811.5,0.55]
[1745986948693,0.50322286,1811.8,1811.4,7.4532323]
[1745986948993,0.8332,1811.9,1811.4,8.80564473]
[1745986949198,0.50322286,1811.7,1811.4,14.38142855]
[1745986949368,6.57876822,1812.0,1811.5,0.55]
[1745986949369,6.15,1812.0,1811.5,0.55]
[1745986949694,0.50322286,1811.9,1811.5,0.55]
[1745986955304,0.7522,1811.8,1811.4,0.7525]
[1745986955507,0.50335377,1811.7,1811.4,0.7525]
[1745986955805,0.50335377,1811.7,1811.4,1.45597062]
[1745986956172,6.9022,1812.0,1811.4,1.45597062]
[1745986956385,0.50335377,1811.6,1811.4,1.16303704]
[1745986956721,0.50335377,1811.5,1811.4,1.71303704]
[1745986957007,6.9022,1812.0,1811.4,1.71303704]
[1745986957306,0.50335377,1811.9,1811.4,1.71303704]
[1745986960700,0.8152,1811.8,1811.3,0.7602]
[1745986961011,0.50286887,1811.7,1811.3,0.7602]
[1745986961174,0.50286887,1811.7,1811.3,2.4544062]
[1745986962214,6.65286887,1811.7,1811.3,2.4544062]
[1745986963687,6.65286887,1811.7,1811.4,0.55]
[1745986977141,6.65286887,1811.7,1811.6,0.55]
[1745986977932,6.15,1811.7,1811.6,0.55]
[1745986978135,6.65221896,1811.7,1811.6,0.55]
[1745986978836,6.65221896,1811.7,1811.6,1.354]
[1745986979040,6.65221896,1811.7,1811.6,1.65882062]
[1745986979706,6.65221896,1811.7,1811.6,11.76580295]
[1745986979907,3.0,1812.1,1811.6,11.76580295]
[1745986980107,0.50221896,1812.0,1811.8,0.55]
[1745986980434,0.50221896,1812.0,1811.8,1.3078]
[1745986980622,0.50221896,1812.0,1811.8,1.60800062]
[1745986980953,0.50221896,1811.9,1811.8,1.60800062]
[1745986981137,6.15,1812.2,1811.8,0.85020062]
[1745986981351,0.50221896,1812.1,1811.8,0.55]
[1745986981558,6.15,1812.2,1811.8,0.55]
[1745986981853,0.50221896,1812.1,1811.8,0.55]
[1745986982357,0.50221896,1812.0,1811.8,0.55]
[1745986982530,6.15,1812.2,1811.8,0.55]
[1745986982733,0.50221896,1812.1,1811.8,0.55]
[1745986982930,6.15,1812.2,1811.8,0.55]
[1745986983137,0.50221896,1812.1,1811.8,0.55]
[1745986983337,6.15,1812.2,1811.8,0.55]
[1745986983537,0.50221896,1812.1,1811.8,0.55]
[1745986983749,6.15,1812.2,1811.8,0.55]
[1745986983927,0.50221896,1812.1,1811.8,0.55]
[1745986984139,6.15,1812.2,1811.8,0.55]
[1745986984344,0.50221896,1812.1,1811.8,0.55]
[1745986984540,6.15,1812.2,1811.8,0.55]
[1745986984743,0.50221896,1812.1,1811.8,1.3424]
[1745986985021,6.15,1812.2,1811.8,1.69302741]
[1745986985542,0.50221896,1812.1,1812.0,0.55]
[1745986985751,3.7617,1812.5,1812.0,0.55]
[1745986985922,0.50221896,1812.4,1812.0,1.3278]
[1745986986122,0.50221896,1812.4,1812.0,1.63000062]
[1745986995484,0.50221896,1812.4,1812.2,0.55]
[1745986995977,11.5266,1812.7,1812.2,0.55]
[1745986996152,0.50686621,1812.6,1812.3,0.7504]
[1745986996353,6.15,1812.7,1812.3,0.7504]
[1745986996559,0.50686621,1812.6,1812.3,0.7504]
[1745986996757,6.15,1812.7,1812.3,0.7504]
[1745986996954,0.50686621,1812.6,1812.3,0.7504]
[1745986997287,0.50686621,1812.5,1812.3,0.7504]
[1745986997591,6.15,1812.7,1812.3,0.7504]
[1745986997751,0.50778213,1812.4,1812.3,0.7504]
[1745986997954,6.15,1812.7,1812.3,0.7504]
[1745986998153,0.50778213,1812.6,1812.3,0.7504]
[1745986998389,6.15,1812.7,1812.3,0.7504]
[1745986998587,0.50778213,1812.5,1812.3,0.7504]
[1745986998888,0.50778213,1812.4,1812.3,0.7504]
[1745986999191,6.15,1812.7,1812.3,0.7504]
[1745986999354,6.15,1812.7,1812.4,0.55]
[1745986999554,9.15,1812.8,1812.4,0.55]
[1745986999755,0.50778213,1812.7,1812.4,0.55]
[1745987000659,0.50778213,1812.7,1812.4,0.84946062]
[1745987005198,0.50778213,1812.7,1812.6,0.55]
[1745987007398,0.50778213,1812.7,1812.6,1.3131]
[1745987007634,0.50778213,1812.7,1812.6,6.83003699]
[1745987007805,0.05,1812.9,1812.8,0.7631]
[1745987008098,0.52281219,1812.9,1812.8,3.08527616]
[1745987008264,0.52281219,1812.9,1812.8,2.3773328]
[1745987008464,0.05,1812.9,1812.8,8.08684276]
[1745987008903,0.52281219,1812.9,1812.8,6.39263656]
[1745987010799,0.05,1812.9,1812.8,6.39263656]
[1745987010975,0.05,1812.9,1812.8,6.52506996]
[1745987011180,0.52281219,1812.9,1812.8,6.52506996]
[1745987012205,0.52281219,1812.9,1812.8,1.94106996]
[1745987012411,0.52281219,1812.9,1812.8,1.3131]
[1745987014712,0.52281219,1812.9,1812.8,0.55]
[1745987015418,0.52281219,1812.9,1812.7,5.79899351]
[1745987015419,0.52281219,1812.9,1812.7,0.8094]
[1745987015716,0.52281219,1812.9,1812.7,0.55]
[1745987016707,0.52281219,1812.9,1812.6,0.55]
[1745987017520,1.29301219,1812.9,1812.6,0.55]
[1745987019619,1.29301219,1812.9,1812.5,0.55]
[1745987020316,1.29301219,1812.9,1812.5,1.17120606]
[1745987021540,1.29301219,1812.9,1812.5,0.55]
[1745987021740,1.29301219,1812.9,1812.2,19.0082]
[1745987021888,0.8166,1812.7,1812.3,4.583]
[1745987022227,0.4767495,1812.6,1812.3,4.583]
[1745987022644,0.8166,1812.7,1812.3,4.583]
[1745987022927,0.4767495,1812.5,1812.3,4.583]
[1745987023101,0.8166,1812.7,1812.3,6.99712]
[1745987023428,0.4767495,1812.6,1812.3,6.99712]
[1745987023794,0.8166,1812.7,1812.3,6.99712]
[1745987023992,0.4767495,1812.6,1812.3,6.99712]
[1745987024194,0.8166,1812.7,1812.3,6.99712]
[1745987024529,0.4767495,1812.6,1812.3,6.99712]
[1745987024728,0.8166,1812.7,1812.3,6.99712]
[1745987024925,0.4767495,1812.6,1812.3,6.99712]
[1745987025126,0.8166,1812.7,1812.3,6.99712]
[1745987025320,0.4767495,1812.6,1812.3,6.99712]
[1745987025521,0.8166,1812.7,1812.3,6.99712]
[1745987025698,0.4767495,1812.6,1812.3,6.99712]
[1745987025893,0.8166,1812.7,1812.3,6.99712]
[1745987026098,0.4767495,1812.6,1812.3,6.99712]
[1745987026300,0.8166,1812.7,1812.2,1.74422333]
[1745987026516,0.4767495,1812.6,1812.2,1.74422333]
[1745987026716,0.8166,1812.7,1812.2,1.74422333]
[1745987027029,0.8166,1812.7,1812.0,2.82550682]
[1745987027030,0.8145,1812.5,1812.0,2.82550682]
[1745987027222,0.8145,1812.5,1812.0,0.8291]
[1745987027407,0.47215581,1812.4,1812.0,0.8291]
[1745987032144,0.47215581,1812.4,1812.1,0.55]